bitfinex/quotes_ETHUSD_20260227
["timestamp","ask_amount","ask_price","bid_price","bid_amount"]
[1772173366405,0.47723198,2036.3,2036.2,0.0011]
[1772173369616,0.47723198,2036.2,2035.8,0.0011]
[1772173369799,0.47723198,2036.2,2035.5,0.0011]
[1772173370195,0.47723198,2036.2,2035.3,0.0011]
[1772173370196,0.47723198,2036.1,2035.3,0.0011]
[1772173371014,0.47723198,2036.1,2035.4,1.013049]
[1772173371717,0.47723198,2035.9,2035.4,1.013049]
[1772173373800,1.70525044,2035.8,2035.4,1.013049]
[1772173374516,0.47723198,2035.7,2035.4,1.013049]
[1772173377623,1.70531379,2035.7,2035.4,1.013049]
[1772173377806,0.47723198,2035.7,2035.4,1.013049]
[1772173378203,0.47723198,2035.6,2035.2,0.0011]
[1772173380123,0.47723198,2035.5,2035.2,0.0011]
[1772173380538,0.47723198,2035.5,2035.4,0.0011]
[1772173382027,1.70543714,2035.5,2035.2,0.0011]
[1772173382428,0.47723198,2035.5,2035.2,0.0011]
[1772173382729,1.70543193,2035.5,2035.2,0.0011]
[1772173383326,0.47723198,2035.5,2035.2,0.0011]
[1772173385213,1.70543342,2035.5,2035.2,0.0011]
[1772173385417,0.47723198,2035.4,2035.2,0.0011]
[1772173386641,0.47723198,2035.5,2035.2,0.0011]
[1772173386841,1.705438,2035.5,2035.2,0.0011]
[1772173387017,1.70543282,2035.5,2035.2,0.0011]
[1772173387213,0.47723198,2035.4,2035.2,0.0011]
[1772173387415,0.47723198,2035.6,2035.2,0.67579421]
[1772173387620,0.47723198,2035.6,2035.2,0.19249221]
[1772173387838,0.47723198,2035.5,2035.2,0.0011]
[1772173388539,1.22822639,2035.5,2035.2,0.0011]
[1772173388846,0.47723198,2035.4,2035.2,0.0011]
[1772173389561,4.91231517,2036.0,2035.2,0.0011]
[1772173389562,0.47723198,2035.9,2035.4,0.19139221]
[1772173389843,0.47723198,2035.9,2035.4,0.67469421]
[1772173390425,0.47723198,2035.9,2035.4,0.19139221]
[1772173390624,0.47723198,2035.9,2035.4,1.41965201]
[1772173390826,0.48413498,2036.1,2035.6,0.19139221]
[1772173391018,1.7119771,2036.1,2035.6,0.19139221]
[1772173391213,0.48313498,2036.0,2035.6,0.19139221]
[1772173391461,0.48313498,2035.6,2035.2,0.0011]
[1772173392251,0.48313498,2035.6,2035.4,0.0011]
[1772173392814,1.71133443,2035.5,2035.4,0.0011]
[1772173393243,0.48313498,2035.4,2035.2,0.0011]
[1772173394750,1.71145512,2035.3,2035.2,0.0011]
[1772173394915,0.48313498,2035.2,2035.1,0.37266838]
[1772173395115,0.48313498,2035.2,2034.5,0.795]
[1772173395343,0.48313498,2035.2,2034.5,1.24627177]
[1772173396634,0.48313498,2035.2,2034.6,0.45127177]
[1772173396851,1.22832014,2035.3,2034.8,0.45127177]
[1772173397445,0.48313498,2035.3,2034.8,0.45127177]
[1772173397649,1.2283056,2035.4,2034.8,0.45127177]
[1772173399124,1.71144058,2035.4,2034.8,0.45127177]
[1772173400948,0.48313498,2035.3,2034.8,0.45127177]
[1772173401244,1.2283805,2035.2,2034.8,0.45127177]
[1772173401630,1.71150342,2035.3,2034.8,0.45127177]
[1772173402545,0.48313498,2035.2,2034.8,0.45127177]
[1772173403148,0.48313498,2035.2,2034.6,1.67996058]
[1772173403354,1.7115204,2035.2,2034.7,0.45127177]
[1772173404257,1.7125204,2035.2,2035.0,0.0011]
[1772173404454,0.48313498,2035.1,2034.6,1.22868881]
[1772173404750,0.48313498,2035.1,2034.8,0.0011]
[1772173406060,1.71159217,2035.1,2034.8,0.0011]
[1772173406257,0.48313498,2035.0,2034.8,0.0011]
[1772173406632,1.22845719,2035.1,2034.8,0.0011]
[1772173407364,0.001,2035.2,2034.8,0.45237177]
[1772173407730,1.22940235,2035.2,2034.8,0.45237177]
[1772173407928,1.71253733,2035.2,2034.8,0.45237177]
[1772173408154,1.71253733,2035.2,2034.8,0.0011]
[1772173408757,0.48313498,2035.1,2034.8,0.0011]
[1772173410236,0.48313498,2034.9,2034.8,0.0011]
[1772173411134,0.48313498,2035.1,2034.8,0.0011]
[1772173413755,1.71160049,2035.1,2034.8,0.0011]
[1772173413962,1.22846551,2035.1,2034.8,0.0011]
[1772173414168,0.48313498,2035.0,2034.8,0.0011]
[1772173414533,1.22844739,2035.1,2034.8,0.0011]
[1772173414734,0.48313498,2035.1,2034.8,0.0011]
[1772173416365,0.48313498,2035.1,2035.0,0.0011]
[1772173418367,1.95479702,2035.2,2035.0,0.0011]
[1772173418746,2.437932,2035.2,2035.0,0.0011]
[1772173419358,0.48313498,2035.1,2034.8,0.0011]
[1772173419944,1.95479702,2035.2,2034.9,0.45469928]
[1772173420153,2.40919106,2035.2,2034.8,0.45579928]
[1772173420877,0.001,2035.2,2034.9,0.45469928]
[1772173423164,0.001,2035.2,2035.0,0.45469928]
[1772173423577,0.001,2035.2,2034.9,1.22853417]
[1772173424081,0.001,2035.2,2035.0,0.45469928]
[1772173425080,0.001,2035.2,2034.8,1.68442078]
[1772173425389,0.001,2035.2,2034.9,0.45469928]
[1772173427579,1.22817496,2035.6,2035.0,0.45469928]
[1772173427787,1.682569,2035.6,2035.0,0.45469928]
[1772173428153,0.45439404,2035.5,2035.0,0.45579928]
[1772173430582,0.45439404,2035.5,2035.1,1.68314014]
[1772173431579,0.45439404,2035.5,2035.1,0.45469928]
[1772173432479,1.6825954,2035.5,2035.1,0.45469928]
[1772173435282,0.45439404,2035.4,2035.1,0.45469928]
[1772173435780,0.45439404,2035.4,2035.0,0.0011]
[1772173436080,0.45439404,2035.4,2035.0,0.45579928]
[1772173436455,0.45439404,2035.4,2035.1,0.45469928]
[1772173438286,0.45439404,2035.4,2035.0,0.45579928]
[1772173439184,0.45439404,2035.3,2035.0,0.45579928]
[1772173439697,0.45439404,2035.3,2035.0,0.0011]
[1772173440195,1.68271717,2035.3,2035.0,0.0011]
[1772173440489,1.68271717,2035.3,2034.9,0.45469928]
[1772173440490,0.45439404,2035.5,2034.9,0.45469928]
[1772173440690,0.45439404,2035.5,2035.2,0.0011]
[1772173440885,0.001,2035.3,2035.2,0.0011]
[1772173442095,0.001,2035.3,2035.2,0.45579928]
[1772173442395,0.001,2035.3,2035.2,0.0011]
[1772173442896,4.91332445,2035.7,2035.2,0.0011]
[1772173442897,0.001,2035.7,2035.3,0.45469928]
[1772173443200,0.001,2035.7,2035.4,0.45469928]
[1772173443884,0.45539404,2035.7,2035.4,0.45469928]
[1772173444584,0.45539404,2035.7,2035.4,1.68294958]
[1772173445096,0.45539404,2036.1,2035.5,0.45469928]
[1772173445295,0.001,2036.1,2035.7,0.45469928]
[1772173446470,0.001,2036.1,2035.9,0.45469928]
[1772173448880,0.001,2036.1,2035.9,1.68264948]
[1772173450881,0.45432406,2036.4,2036.0,0.4788338]
[1772173451281,0.001,2036.4,2036.1,0.4788338]
[1772173451583,0.001,2036.4,2035.8,1.22798886]
[1772173451584,0.45332406,2036.3,2035.8,1.22798886]
[1772173451787,0.45332406,2036.3,2035.8,1.70682266]
[1772173452175,0.45332406,2036.3,2035.6,0.4788338]
[1772173453109,0.001,2035.9,2035.7,1.70691259]
[1772173453615,5.63715106,2036.4,2035.8,1.20421656]
[1772173453616,0.45432406,2036.4,2035.8,1.20421656]
[1772173453907,0.45432406,2036.4,2035.7,1.22807879]
[1772173453908,0.45332406,2036.3,2035.9,0.4788338]
[1772173454983,0.45332406,2036.3,2035.9,1.70676798]
[1772173455613,0.45332406,2036.3,2035.9,1.70678773]
[1772173456406,0.45332406,2036.3,2035.9,1.70679134]
[1772173457414,0.45332406,2036.3,2035.9,0.4788338]
[1772173457801,1.68104748,2036.3,2035.9,0.4788338]
[1772173458007,0.45332406,2036.3,2035.9,0.4788338]
[1772173458717,1.6810424,2036.3,2035.9,0.4788338]
[1772173458893,0.45332406,2036.2,2035.8,1.70681198]
[1772173459493,0.45332406,2036.2,2035.9,0.4788338]
[1772173463032,0.45332406,2036.1,2035.5,0.0011]
[1772173463216,0.45332406,2035.9,2035.5,0.0011]
[1772173463928,0.45332406,2035.9,2035.5,0.4799338]
[1772173464725,0.45332406,2036.1,2035.6,0.4788338]
[1772173465041,1.68217517,2036.1,2035.6,1.70695369]
[1772173465336,0.45332406,2036.0,2035.9,0.0011]
[1772173467335,0.45432406,2036.1,2035.9,0.0011]
[1772173467636,0.45332406,2035.9,2035.6,0.0011]
[1772173468907,0.45332406,2035.7,2035.5,0.0011]
[1772173469324,0.45332406,2035.6,2035.5,0.0011]
[1772173469536,1.22810828,2035.7,2035.3,0.0011]
[1772173469537,0.45332406,2035.5,2035.3,0.0011]
[1772173471531,1.68154895,2035.5,2035.3,0.0011]
[1772173471911,0.45332406,2035.5,2035.3,0.0011]
[1772173472435,0.45332406,2035.7,2035.3,0.4799338]
[1772173474846,4.91199807,2035.9,2035.4,1.7070936]
[1772173474847,0.45332406,2035.9,2035.4,1.7070936]
[1772173475046,0.45332406,2035.9,2035.4,0.4788338]
[1772173476341,0.45432406,2036.1,2035.6,0.4788338]
[1772173476836,0.45432406,2036.1,2035.7,1.22807879]
[1772173477039,0.45432406,2036.1,2035.2,0.2310338]
[1772173477040,0.45332406,2035.7,2035.2,0.2310338]
[1772173477250,0.45332406,2035.7,2035.5,0.0011]
[1772173478829,1.22813912,2035.6,2035.5,0.0011]
[1772173479028,1.681444,2035.7,2035.5,0.0011]
[1772173479229,0.45332406,2035.7,2035.5,0.0011]
[1772173480043,1.6814064,2035.7,2035.5,0.0011]
[1772173480364,1.68140306,2035.7,2035.5,0.0011]
[1772173481228,0.45332406,2035.7,2035.5,0.0011]
[1772173481538,1.68141222,2035.7,2035.5,0.0011]
[1772173481760,0.45332406,2035.7,2035.5,0.0011]
[1772173482356,1.68140715,2035.7,2035.5,0.0011]
[1772173483162,0.45332406,2035.7,2035.5,0.0011]
[1772173486071,0.45332406,2035.7,2035.4,0.30656059]
[1772173486775,1.72258126,2035.8,2035.4,0.30656059]
[1772173487279,0.49455594,2035.7,2035.4,0.30656059]
[1772173489057,0.49455594,2035.7,2035.5,0.0011]
[1772173489578,1.72267733,2035.7,2035.5,0.0011]
[1772173491664,0.49455594,2035.6,2035.5,0.0011]
[1772173492051,0.49455594,2035.8,2035.5,0.0011]
[1772173493588,0.49455594,2035.7,2035.5,0.0011]
[1772173495777,0.49455594,2035.5,2035.3,0.0011]
[1772173498182,1.72275729,2035.5,2035.3,0.0011]
[1772173498384,0.49455594,2035.5,2035.3,0.0011]
[1772173498691,1.72276267,2035.5,2035.3,0.0011]
[1772173501495,0.49555594,2035.5,2035.3,0.0011]
[1772173501675,1.72376338,2035.5,2035.3,0.0011]
[1772173501874,0.49555594,2035.5,2035.3,0.0011]
[1772173502186,1.72375579,2035.5,2035.3,0.0011]
[1772173502370,0.49555594,2035.5,2035.3,0.0011]
[1772173502777,1.72375922,2035.5,2035.3,0.0011]
[1772173503897,0.49455594,2035.4,2035.3,0.0011]
[1772173504199,0.49455594,2035.1,2035.0,0.0011]
[1772173505866,0.49455594,2035.1,2034.8,0.0011]
[1772173506070,0.49455594,2034.9,2034.8,0.0011]
[1772173506496,0.49455594,2035.1,2034.8,0.0011]
[1772173506669,0.49455594,2035.3,2034.8,0.30986059]
[1772173506870,1.72288193,2035.3,2034.8,0.30986059]
[1772173508001,0.49455594,2035.3,2034.8,0.30986059]
[1772173508389,0.001,2035.5,2035.0,0.30876059]
[1772173510186,0.001,2035.5,2035.2,0.30876059]
[1772173510381,0.001,2035.5,2035.4,0.30876059]
[1772173512893,0.001,2035.5,2035.4,0.30986059]
[1772173513092,0.45677978,2035.5,2035.4,0.0011]
[1772173514802,0.001,2035.5,2035.4,0.0011]
[1772173516916,0.45677978,2035.5,2035.4,0.0011]
[1772173517412,0.001,2035.5,2035.4,0.0011]
[1772173519386,0.45677978,2035.5,2035.4,0.0011]
[1772173524118,1.68497923,2035.5,2034.9,0.0011]
[1772173524305,0.49999999,2035.2,2034.9,0.0011]
[1772173525793,0.49999999,2035.2,2035.0,0.0011]
[1772173526118,0.49944999,2035.0,2034.8,0.0011]
[1772173527906,0.49944999,2035.2,2034.8,0.00220001]
[1772173528106,1.22838499,2035.2,2034.8,0.00220001]
[1772173528313,0.49944999,2035.1,2034.8,0.00220001]
[1772173528619,0.49944999,2035.1,2034.8,0.0011]
[1772173528821,0.49944999,2035.0,2034.8,0.0011]
[1772173530186,0.49944999,2034.9,2034.8,0.0011]
[1772173532416,0.49944999,2035.0,2034.8,0.0011]
[1772173535720,1.72786673,2035.2,2034.8,0.0011]
[1772173535921,1.72786673,2035.2,2034.8,0.00220001]
[1772173536221,0.49944999,2035.1,2034.8,0.00220001]
[1772173537105,0.001,2035.3,2034.9,0.00110001]
[1772173537309,0.001,2035.3,2035.1,0.00110001]
[1772173537719,0.49944999,2035.2,2035.0,0.0011]
[1772173539627,1.22843725,2035.2,2035.0,0.0011]
[1772173539801,0.49944999,2035.1,2035.0,0.0011]
[1772173540322,0.49944999,2035.1,2034.8,0.0011]
[1772173540532,0.49944999,2035.0,2034.8,0.0011]
[1772173542432,1.72800276,2035.0,2034.8,0.0011]
[1772173543126,1.22848147,2035.1,2034.8,0.00220001]
[1772173543332,1.72793146,2035.1,2034.8,0.00220001]
[1772173545132,0.49944999,2035.0,2034.8,0.0011]
[1772173547852,1.2285616,2034.9,2034.8,0.0011]
[1772173549238,1.72801159,2034.9,2034.8,0.0011]
[1772173551235,1.72801159,2034.9,2034.6,0.00110001]
[1772173551537,0.49944999,2034.8,2034.5,0.0011]
[1772173552344,1.72813235,2034.7,2034.5,0.0011]
[1772173552529,0.49944999,2034.6,2034.5,0.0011]
[1772173553525,0.49944999,2034.6,2034.1,1.39810001]
[1772173554339,0.49944999,2034.4,2033.4,0.00110001]
[1772173554544,0.49944999,2034.4,2033.6,0.00110001]
[1772173554857,0.49944999,2034.4,2033.8,0.00110001]
[1772173555022,1.72825313,2034.5,2033.8,0.00110001]
[1772173555658,0.49944999,2034.5,2033.8,0.00110001]
[1772173556338,0.49944999,2034.5,2033.9,0.00110001]
[1772173557947,2.45313411,2034.7,2033.9,0.00110001]
[1772173558136,1.22441807,2034.7,2033.9,0.00110001]
[1772173558342,0.49944999,2034.7,2033.9,0.00110001]
[1772173558523,1.72813605,2034.7,2034.0,0.00110001]
[1772173558931,0.49944999,2034.6,2034.0,0.00110001]
[1772173559546,0.49944999,2034.6,2033.8,0.00110001]
[1772173559857,0.72496808,2034.5,2033.8,0.00110001]
[1772173560059,0.49944999,2034.6,2033.8,0.00110001]
[1772173560353,0.49944999,2034.6,2034.0,0.00110001]
[1772173561432,0.49944999,2034.6,2034.1,0.00110001]
[1772173561848,1.72819695,2034.6,2034.1,0.00110001]
[1772173562361,0.49944999,2034.5,2034.0,1.23020521]
[1772173562986,0.49944999,2034.5,2034.0,1.23130522]
[1772173563251,0.49944999,2034.5,2034.0,0.00220001]
[1772173563455,0.49944999,2034.3,2034.0,0.00220001]
[1772173563663,0.49944999,2034.3,2034.0,0.0011]
[1772173564949,0.49944999,2034.5,2034.1,0.00110001]
[1772173565144,1.72825361,2034.5,2034.1,0.00110001]
[1772173565647,0.49944999,2034.5,2034.1,0.00110001]
[1772173565851,1.72813968,2034.7,2034.1,0.00110001]
[1772173566049,0.49944999,2034.6,2034.1,0.00110001]
[1772173568368,1.72911619,2034.8,2034.1,0.00110001]
[1772173568667,1.2296662,2034.8,2034.1,0.00110001]
[1772173568845,0.49944999,2034.7,2034.1,0.00110001]
[1772173569877,0.49944999,2034.7,2033.4,0.18685624]
[1772173570053,0.5,2033.4,2031.6,2.48592138]
[1772173570367,1.90159654,2033.3,2032.3,0.72496808]
[1772173570541,0.67206819,2033.2,2032.4,0.0851256]
[1772173570739,0.67206819,2033.2,2032.5,1.395]
[1772173571060,0.67206819,2033.2,2032.4,0.0851256]
[1772173571261,0.67206819,2033.0,2032.5,0.0851256]
[1772173571467,0.67206819,2033.0,2032.2,3.3928353]
[1772173571641,1.22952835,2033.3,2032.2,3.3928353]
[1772173571642,0.67206819,2033.2,2032.2,3.3928353]
[1772173571841,0.67206819,2033.2,2032.3,0.0851256]
[1772173572246,1.2296493,2033.1,2032.4,0.0851256]
[1772173572459,1.90171749,2033.1,2032.4,0.0851256]
[1772173572665,0.67206819,2033.6,2032.4,3.3928353]
[1772173573246,0.67206819,2033.6,2032.5,1.394]
[1772173573447,0.67206819,2033.6,2032.6,5.960259]
[1772173573649,0.67206819,2033.6,2032.6,2.8107]
[1772173573850,0.67206819,2033.6,2032.7,0.0011]
[1772173574250,0.67206819,2033.4,2032.7,0.0011]
[1772173574457,0.67206819,2033.4,2032.7,0.7971]
[1772173574850,0.67206819,2033.4,2032.7,0.0011]
[1772173575049,0.67206819,2033.4,2032.6,7.51573]
[1772173575250,0.67206819,2033.4,2032.6,0.796]
[1772173575873,0.67206819,2033.4,2032.5,0.0011]
[1772173576666,0.67206819,2033.2,2032.5,1.3931]
[1772173577379,0.67206819,2033.2,2032.5,0.0011]
[1772173577579,0.67206819,2033.2,2032.5,1.3931]
[1772173577944,0.67206819,2033.2,2032.5,0.0011]
[1772173578144,1.22952835,2033.3,2031.1,3.3928353]
[1772173578145,0.67206819,2032.7,2031.1,3.3928353]
[1772173578344,0.67206819,2032.5,2031.2,8.040172]
[1772173578566,0.67206819,2032.3,2031.5,8.040172]
[1772173579146,0.67206819,2032.3,2031.4,3.3928353]
[1772173579490,0.67206819,2032.3,2031.5,30.0]
[1772173579774,0.67206819,2032.3,2031.6,3.82729945]
[1772173580465,1.23019387,2032.2,2031.7,0.958]
[1772173580660,1.23019387,2032.2,2031.6,2.42429945]
[1772173580964,1.23019387,2032.2,2031.6,3.82829945]
[1772173581361,1.23019387,2032.2,2031.4,2.42429945]
[1772173581563,1.90226206,2032.2,2031.5,31.404]
[1772173581874,1.90226206,2032.2,2031.5,30.0]
[1772173582176,0.67206819,2032.1,2031.5,30.0]
[1772173582353,0.67206819,2032.1,2031.1,15.911319]
[1772173582553,0.67206819,2031.9,2031.1,15.530174]
[1772173582868,0.67206819,2031.9,2031.1,1.407]
[1772173583053,0.67206819,2031.9,2030.9,4.73992916]
[1772173583254,4.92125984,2032.1,2031.2,2.42429945]
[1772173583255,1.90235351,2032.1,2031.2,2.42429945]
[1772173583475,0.67206819,2032.4,2031.6,2.42429945]
[1772173584374,0.67206819,2032.6,2031.8,2.42429945]
[1772173584575,1.2300123,2032.5,2031.9,18.298605]
[1772173584777,1.2300123,2032.5,2031.9,15.218278]
[1772173584977,1.2300123,2032.5,2031.9,1.407]
[1772173585275,1.2300123,2032.5,2031.8,5.056163]
[1772173585577,0.67206819,2032.4,2031.5,1.23061777]
[1772173585822,0.67206819,2032.4,2031.6,11.709183]
[1772173586090,0.67206819,2032.4,2031.8,2.054363]
[1772173586247,0.67206819,2032.4,2031.5,1.23061777]
[1772173586455,0.67206819,2032.4,2031.4,10.721586]
[1772173586668,1.90220153,2032.3,2031.6,18.249191]
[1772173586953,1.90320153,2032.3,2031.6,14.313406]
[1772173587171,1.90320153,2032.3,2031.6,12.981106]
[1772173587378,1.90320153,2032.3,2031.6,1.408]
[1772173587773,0.67206819,2032.2,2031.6,1.408]
[1772173587964,0.67206819,2032.2,2031.5,1.408]
[1772173588384,0.67206819,2032.2,2031.4,0.0011]
[1772173588583,1.9023226,2032.1,2031.4,1.4091]
[1772173589270,1.9023226,2032.1,2031.4,0.0011]
[1772173589672,1.9023226,2032.1,2031.4,1.4081]
[1772173589876,0.67206819,2032.0,2031.4,1.4081]
[1772173590688,1.90243836,2032.0,2031.4,2.63876763]
[1772173590882,1.90243836,2032.0,2031.4,1.23176763]
[1772173591086,1.90243836,2032.0,2031.4,1.23177815]
[1772173591298,0.67206819,2031.9,2031.4,0.0011]
[1772173591492,4.92078674,2032.2,2031.4,1.23177116]
[1772173591493,1.90226206,2032.2,2031.4,1.23177116]
[1772173591899,0.67206819,2032.1,2031.4,1.23176714]
[1772173592476,0.67206819,2032.1,2031.4,0.0011]
[1772173592678,0.67206819,2032.1,2031.4,1.2317725]
[1772173593202,0.67206819,2031.9,2031.4,0.0011]
[1772173594583,1.23031496,2032.0,2031.4,0.0011]
[1772173595200,1.90238315,2032.0,2031.4,0.0011]
[1772173596915,0.67206819,2031.9,2031.4,0.0011]
[1772173597202,0.67206819,2032.1,2031.4,0.0011]
[1772173597707,0.67206819,2032.0,2031.4,0.0011]
[1772173598808,0.67206819,2032.0,2031.6,0.0011]
[1772173598987,0.001,2031.9,2031.6,0.0011]
[1772173599701,0.001,2032.3,2031.7,2.42429945]
[1772173599881,0.001,2032.3,2031.8,18.300484]
[1772173600900,0.001,2032.3,2031.9,2.42429945]
[1772173601108,0.001,2032.3,2032.0,1.406]
[1772173602185,0.67206819,2032.7,2032.1,1.23025441]
[1772173602382,0.67206819,2032.9,2032.1,1.23025441]
[1772173602586,0.67206819,2032.9,2032.2,26.312029]
[1772173602808,0.67206819,2032.9,2032.2,25.680439]
[1772173603312,0.67206819,2032.9,2032.3,1.409]
[1772173603480,0.67206819,2032.9,2032.2,25.680439]
[1772173603676,0.67206819,2032.9,2032.3,1.409]
[1772173603882,0.67206819,2033.1,2032.3,2.42429945]
[1772173604115,0.67206819,2033.1,2032.4,1.23007282]
[1772173604303,0.67206819,2033.1,2032.5,1.41]
[1772173604898,0.67206819,2033.1,2032.4,1.23007282]
[1772173605092,0.67206819,2033.1,2032.5,1.41]
[1772173606311,0.67206819,2033.1,2032.5,1.409]
[1772173606516,0.67206819,2033.1,2032.4,1.23007282]
[1772173606816,0.67206819,2033.1,2032.5,1.409]
[1772173607033,0.67206819,2033.3,2032.5,1.409]
[1772173608721,0.67206819,2033.3,2032.6,1.22995178]
[1772173609017,0.67206819,2033.2,2032.6,1.22995178]
[1772173609314,0.67206819,2033.2,2032.7,0.48439464]
[1772173610805,0.67206819,2033.2,2032.8,1.22983077]
[1772173611723,0.001,2033.1,2032.8,1.22983077]
[1772173614029,0.67306819,2033.1,2032.7,1.71426629]
[1772173615905,0.001,2033.1,2032.7,1.71426629]
[1772173616125,0.67206819,2033.4,2032.9,1.71415675]
[1772173617306,0.67206819,2033.3,2032.6,2.63894844]
[1772173618021,0.67206819,2033.0,2032.6,1.409]
[1772173619012,0.67206819,2033.0,2032.6,2.63894422]
[1772173619326,0.67206819,2033.0,2032.6,1.409]
[1772173619531,0.67206819,2033.0,2032.6,2.63894924]
[1772173620930,0.67206819,2032.9,2032.6,1.409]
[1772173621806,0.67206819,2032.9,2032.6,0.73693181]
[1772173623023,0.58879862,2032.8,2032.5,0.0011]
[1772173625015,0.58879862,2032.6,2032.5,0.0011]
[1772173625650,0.58879862,2032.6,2032.0,0.0011]
[1772173625859,0.58879862,2032.6,2032.0,0.0033]
[1772173626545,0.58879862,2032.6,2032.0,0.0011]
[1772173627266,0.58879862,2032.4,2032.0,0.0011]
[1772173629747,0.58879862,2032.3,2032.0,0.0011]
[1772173630150,0.52691453,2032.5,2032.1,0.0022]
[1772173630920,0.52691453,2032.7,2032.2,0.0022]
[1772173631161,0.52691453,2032.7,2032.1,0.49780674]
[1772173631865,0.52691453,2032.7,2032.2,1.23019387]
[1772173635766,0.52691453,2032.9,2032.3,0.48484457]
[1772173635971,0.52691453,2032.9,2032.4,0.0011]
[1772173636168,0.001,2032.6,2032.4,0.0011]
[1772173636369,0.001,2032.6,2032.4,1.23117282]
[1772173636673,0.001,2032.6,2032.4,1.71124748]
[1772173637249,0.001,2032.6,2032.5,0.0022]
[1772173637658,0.001,2032.6,2032.5,0.48008138]
[1772173637838,0.52791453,2033.1,2032.5,0.47788138]
[1772173638038,0.52791453,2033.1,2032.6,0.0012]
[1772173638253,0.52691453,2033.0,2032.6,0.0012]
[1772173638653,0.52691453,2033.0,2032.6,1.23115178]
[1772173639064,0.52691453,2032.9,2032.4,0.0011]
[1772173640765,0.52691453,2032.7,2032.4,0.0011]
[1772173642767,0.52691453,2032.6,2032.4,0.0011]
[1772173649166,0.52691453,2032.8,2032.4,0.0011]
[1772173649594,0.52691453,2032.8,2032.6,0.0011]
[1772173649889,0.52791453,2032.8,2032.6,0.0011]
[1772173652670,1.75775527,2032.8,2032.6,0.0011]
[1772173652869,0.52691453,2032.7,2032.6,0.0011]
[1772173658494,0.001,2032.8,2032.6,0.42806218]
[1772173659494,0.001,2032.8,2032.6,0.0011]
[1772173659793,0.52791453,2032.8,2032.6,0.0011]
[1772173660291,0.001,2032.8,2032.6,0.0011]
[1772173660491,0.001,2032.8,2032.6,0.42325841]
[1772173661312,0.51862697,2032.8,2032.6,0.0011]
[1772173661523,0.001,2032.8,2032.6,0.0011]
[1772173662585,0.51862697,2032.8,2032.6,0.0011]
[1772173664112,0.001,2032.8,2032.6,0.41610449]
[1772173665716,0.001,2032.8,2032.7,0.41026945]
[1772173666420,0.001,2033.1,2032.7,0.40791213]
[1772173666588,0.001,2033.1,2032.6,1.23101429]
[1772173666589,0.001,2033.1,2032.8,0.40791213]
[1772173667616,0.001,2033.1,2032.8,1.63769]
[1772173668287,0.001,2033.1,2032.9,0.40556159]
[1772173669303,0.51762697,2032.9,2032.3,0.0011]
[1772173669505,0.001,2033.1,2032.0,0.0022]
[1772173669506,0.51762697,2032.5,2032.0,0.0022]
[1772173669709,0.51762697,2032.3,2031.8,1.38891841]
[1772173669915,0.51762697,2032.3,2031.8,0.15849572]
[1772173670226,0.51762697,2032.3,2031.8,1.38892559]
[1772173670536,0.51762697,2032.3,2031.8,1.38892406]
[1772173671638,0.51982697,2032.2,2031.7,1.95749163]
[1772173671806,0.51762697,2032.2,2031.7,1.95749163]
[1772173672626,0.51762697,2032.2,2031.7,2.11284095]
[1772173674025,0.0022,2032.1,2031.7,1.3858196]
[1772173674228,0.51982697,2032.1,2031.7,1.3858196]
[1772173674533,0.51982697,2032.1,2031.6,1.23052231]
[1772173674741,0.51982697,2032.1,2031.9,0.0011]
[1772173676231,0.0022,2032.0,2031.9,0.0011]
[1772173680234,0.51982697,2032.0,2031.9,0.0011]
[1772173680433,0.51982697,2032.0,2031.4,0.0011]
[1772173680434,0.51762697,2032.0,2031.4,0.0011]
[1772173680733,0.08192,2031.8,2031.4,0.0011]
[1772173681049,0.51762697,2031.6,2030.8,0.13807423]
[1772173681361,0.51762697,2031.2,2030.7,0.0019]
[1772173681561,0.51762697,2031.0,2030.4,1.36705406]
[1772173681736,0.51762697,2031.0,2030.4,1.35734105]
[1772173681931,0.51762697,2031.0,2030.4,0.12609384]
[1772173682149,0.51762697,2031.0,2030.0,7.56213938]
[1772173682150,0.51762697,2030.8,2030.1,1.23146643]
[1772173682557,0.51762697,2030.8,2030.2,0.12389894]
[1772173682862,0.51762697,2031.3,2030.5,0.12389894]
[1772173683237,0.51762697,2031.7,2030.9,0.12389894]
[1772173683659,0.51762697,2032.0,2031.0,7.327074]
[1772173683865,0.51762697,2032.0,2031.3,0.12913654]
[1772173684043,0.51762697,2032.3,2031.5,0.12913654]
[1772173684953,0.51762697,2032.6,2031.7,0.12686948]
[1772173686551,0.51762697,2032.6,2031.8,1.23043606]
[1772173686743,0.51762697,2032.5,2031.8,1.23043606]
[1772173687944,0.51762697,2032.5,2031.8,1.35054317]
[1772173689940,0.51266831,2032.8,2031.9,0.11340255]
[1772173690668,0.51266831,2032.8,2032.0,1.23031496]
[1772173690884,0.51266831,2032.8,2032.0,1.34371751]
[1772173691470,0.51266831,2032.8,2032.1,0.11118045]
[1772173692772,0.51266831,2032.8,2032.2,1.23019387]
[1772173692979,0.51266831,2032.8,2032.2,1.33915856]
[1772173693655,0.001,2032.9,2032.3,0.10675525]
[1772173693855,0.001,2032.9,2032.4,0.10675525]
[1772173695065,0.001,2033.1,2032.5,0.10355212]
[1772173695460,0.51366831,2033.1,2032.5,0.10355212]
[1772173697960,0.51366831,2033.1,2032.5,1.22996447]
[1772173699573,0.51266831,2033.0,2032.5,1.22996447]
[1772173699974,0.001,2032.7,2032.4,4.92026999]
[1772173700694,0.001,2032.7,2032.4,1.23007282]
[1772173700879,0.51366831,2032.7,2032.4,1.23007282]
[1772173702492,0.51366831,2032.7,2032.2,1.23019387]
[1772173705092,0.51366831,2032.7,2032.2,1.31207158]
[1772173709273,0.51266831,2033.0,2032.3,0.50413921]
[1772173709478,0.001,2033.1,2032.3,0.50413921]
[1772173709479,0.51366831,2033.1,2032.3,0.50413921]
[1772173709999,0.51366831,2033.1,2032.5,0.50413921]
[1772173710386,0.51366831,2033.1,2032.6,1.73409099]
[1772173710605,0.001,2033.1,2032.7,0.50413921]
[1772173711783,0.001,2032.9,2032.7,0.50413921]
[1772173712280,0.001,2032.9,2032.8,1.22983077]
[1772173716902,0.001,2032.9,2032.8,0.50413921]
[1772173717809,0.001,2033.1,2032.8,0.50413921]
[1772173718307,0.51266831,2033.5,2033.0,0.50413921]
[1772173718694,0.001,2033.4,2033.0,0.50413921]
[1772173719290,0.001,2033.4,2033.1,1.73378851]
[1772173723017,0.45364497,2033.4,2033.1,1.2296493]
[1772173723217,0.45264497,2033.7,2033.1,1.71382997]